[Event "FIDE WCCC Girls-10 2024"]
[Site "Montesilvano"]
[Date "2024.11.18"]
[Round "2.32"]
[White "Serradell Munoz, Silvia"]
[Black "Zhang, Weiai"]
[Result "0-1"]
[ECO "B56"]
[WhiteElo "1670"]
[BlackElo "1488"]
[PlyCount "70"]
[EventDate "2024.11.18"]
[EventType "swiss"]
[EventCountry "ITA"]
[TimeControl "5400+30"]

1. e4 {[%emt 0:00:07]} c5 {[%emt 0:00:04]} 2. Nf3 {[%emt 0:00:10]} d6 {[%emt 0:00:04]} 3. d4 {[%emt 0:00:13]} cxd4 {[%emt 0:00:05]} 4. Nxd4 {[%emt 0:00:18]} Nf6 {[%emt 0:00:06]} 5. Nc3 {[%emt 0:00:12]} Nc6 {[%emt 0:00:06]} 6. Be3 {[%emt 0:00:30]} Ng4 {[%emt 0:00:05]} 7. Nxc6 {[%emt 0:02:23]} bxc6 {[%emt 0:00:09]} 8. Bd2 {[%emt 0:01:06]} Qb6 {[%emt 0:01:15]} 9. Qf3 {[%emt 0:00:50]} Qxb2 {[%emt 0:03:11]} 10. Rb1 {[%emt 0:02:44]} Qa3 {[%emt 0:00:24]} 11. Be2 {[%emt 0:06:55]} Qa5 {[%emt 0:04:21]} 12. O-O {[%emt 0:04:19]} Qc7 {[%emt 0:01:17]} 13. Qg3 {[%emt 0:01:54]} Ne5 {[%emt 0:01:17]} 14. f4 {[%emt 0:02:37]} Nd7 {[%emt 0:01:05]} 15. Be3 {[%emt 0:01:35]} g6 {[%emt 0:03:27]} 16. f5 {[%emt 0:01:15]} Bg7 {[%emt 0:04:07]} 17. Nd1 {[%emt 0:04:04]} Ne5 {[%emt 0:03:04]} 18. fxg6 {[%emt 0:01:07]} hxg6 {[%emt 0:00:41]} 19. Nf2 {[%emt 0:02:13]} Be6 {[%emt 0:02:04]} 20. a3 {[%emt 0:02:10]} Nc4 {[%emt 0:08:13]} 21. Bxc4 {[%emt 0:01:31]} Bxc4 {[%emt 0:00:13]} 22. Rfd1 {[%emt 0:01:06]} Ba2 {[%emt 0:08:01]} 23. Rb4 {[%emt 0:04:35]} c5 {[%emt 0:01:36]} 24. Bxc5 {[%emt 0:04:46]} Qxc5 {[%emt 0:00:25]} 25. Qd3 {[%emt 0:00:38]} Rc8 {[%emt 0:05:11]} 26. Qb5+ {[%emt 0:00:47]} Qxb5 {[%emt 0:00:30]} 27. Rxb5 {[%emt 0:00:08]} Rxc2 {[%emt 0:00:23]} 28. Nd3 {[%emt 0:01:19]} Bc4 {[%emt 0:03:04]} 29. Rb8+ {[%emt 0:00:14]} Kd7 {[%emt 0:00:14]} 30. Rb7+ {[%emt 0:00:33]} Kc8 {[%emt 0:04:45]} 31. Rxe7 {[%emt 0:01:00]} Bd4+ {[%emt 0:00:16]} 32. Kf1 {[%emt 0:01:35]} Rxh2 {[%emt 0:00:20]} 33. Re8+ {[%emt 0:01:03]} Kd7 {[%emt 0:00:22]} 34. Rh8 {[%emt 0:00:07]} Rxh8 {[%emt 0:00:24]} 35. Rd2 {[%emt 0:00:30]} Bxd3+ {[%emt 0:00:20]} 0-1

[Event "FIDE WCCC Girls-10 2024"]
[Site "Montesilvano"]
[Date "2024.11.18"]
[Round "2.33"]
[White "Babii, Oriiana"]
[Black "Camacho Chavez, Nirvana"]
[Result "0-1"]
[ECO "B13"]
[WhiteElo "1481"]
[BlackElo "1638"]
[PlyCount "47"]
[EventDate "2024.11.18"]
[EventType "swiss"]
[EventCountry "ITA"]
[TimeControl "5400+30"]

1. e4 {[%emt 0:00:02]} c6 {[%emt 0:00:11]} 2. d4 {[%emt 0:00:42]} d5 {[%emt 0:00:49]} 3. exd5 {[%emt 0:00:39]} cxd5 {[%emt 0:00:18]} 4. Bd3 {[%emt 0:00:50]} Nc6 {[%emt 0:00:13]} 5. c3 {[%emt 0:01:06]} Qc7 {[%emt 0:00:15]} 6. h3 {[%emt 0:07:07]} Nf6 {[%emt 0:00:19]} 7. Nf3 {[%emt 0:02:10]} g6 {[%emt 0:00:12]} 8. Bg5 {[%emt 0:02:30]} Bg7 {[%emt 0:00:12]} 9. Nbd2 {[%emt 0:01:49]} Bf5 {[%emt 0:00:22]} 10. Bxf5 {[%emt 0:03:00]} gxf5 {[%emt 0:02:45]} 11. Qc2 {[%emt 0:02:07]} e6 {[%emt 0:00:26]} 12. Bxf6 {[%emt 0:03:17]} Bxf6 {[%emt 0:00:20]} 13. O-O-O {[%emt 0:02:07]} O-O-O {[%emt 0:02:06]} 14. Rhg1 {[%emt 0:03:34]} Kb8 {[%emt 0:00:44]} 15. g4 {[%emt 0:02:02]} fxg4 {[%emt 0:00:24]} 16. Rxg4 {[%emt 0:02:52]} Rc8 17. Nb3 {[%emt 0:08:15]} h5 {[%emt 0:02:10]} 18. Rg3 {[%emt 0:02:05]} Nb4 {[%emt 0:00:00]} 19. Rg4 {[%emt 0:00:00]} Nc6 {[%emt 0:01:00]} 20. Rg3 {[%emt 0:01:00]} Nb4 {[%emt 0:03:29]} 21. Qe2 {[%emt 0:04:18]} Qf4+ {[%emt 0:05:52] Qc2 Qc7 Qe2 Qf4+} 22. Kb1 {[%emt 0:02:08]} Rcd8 {[%emt 0:36:45] Kc1 Rc8+ Kb1 Qf5+ Kc1 Nxa2+ Kd2 Nb4 Ke1} 23. h4 {[%emt 0:08:54] Rg1} Nc2 {[%emt 0:00:00] Kf1 Qxh3+} 24. Rg2 {[%emt 0:00:00] Rcg8 Qxc2 Qxg2+ Ke2 Qg6 Qxg6 Rxg6} 0-1

[Event "FIDE WCCC Girls-10 2024"]
[Site "Montesilvano"]
[Date "2024.11.18"]
[Round "2.34"]
[White "Yang, Haeun"]
[Black "Shtepa, Liubov"]
[Result "0-1"]
[ECO "C50"]
[WhiteElo "1475"]
[BlackElo "1615"]
[PlyCount "43"]
[EventDate "2024.11.18"]
[EventType "swiss"]
[EventCountry "ITA"]
[TimeControl "5400+30"]

1. e4 e5 2. Nf3 Nc6 3. Bc4 Bc5 4. Nc3 Nf6 5. d3 h6 6. h3 d6 7. a3 a5 8. Bd2 Bd7 9. Qe2 Qe7 10. Ba2 Nd4 11. Nxd4 exd4 12. Nd5 Nxd5 13. Bxd5 c6 14. Bc4 b5 15. Ba2 Be6 16. O-O Bxa2 17. Rxa2 O-O 18. Qg4 Kh8 19. c3 dxc3 20. Bxc3 f6 21. Re1 b4 {[%emt 1:12:53]} 22. axb4 0-1

[Event "FIDE WCCC Girls-10 2024"]
[Site "Montesilvano"]
[Date "2024.11.18"]
[Round "2.35"]
[White "Song, Rina"]
[Black "Pambieri, Nicole"]
[Result "0-1"]
[ECO "C53"]
[WhiteElo "1599"]
[BlackElo "1482"]
[PlyCount "240"]
[EventDate "2024.11.18"]
[EventType "swiss"]
[EventCountry "ITA"]
[TimeControl "5400+30"]

1. e4 {[%emt 0:00:04]} e5 {[%emt 0:00:07]} 2. Nf3 {[%emt 0:00:26]} Nc6 {[%emt 0:00:06]} 3. d4 {[%emt 0:00:40]} exd4 {[%emt 0:00:45]} 4. Bc4 {[%emt 0:00:46]} Bc5 {[%emt 0:04:39]} 5. c3 {[%emt 0:04:17]} Qe7 {[%emt 0:25:04]} 6. O-O dxc3 {[%emt 0:20:25]} 7. Nxc3 {[%emt 0:07:07]} Nf6 {[%emt 0:01:58]} 8. Bg5 d6 {[%emt 0:09:54]} 9. Nd5 {[%emt 0:07:36]} Qd8 {[%emt 0:00:28]} 10. Re1 {[%emt 0:01:50]} Bg4 {[%emt 0:06:50]} 11. Bb5 {[%emt 0:02:02]} Qe7 {[%emt 0:00:00]} 12. Rf1 {[%emt 0:00:00]} Bc8 {[%emt 0:00:00]} 13. Bc4 {[%emt 0:00:00]} Qd8 {[%emt 0:00:00]} 14. Re1 {[%emt 0:00:00]} Bg4 15. Bb5 h6 {[%emt 0:05:39]} 16. Bh4 {[%emt 0:03:31]} a6 {[%emt 0:04:58]} 17. Bxc6+ {[%emt 0:01:01]} bxc6 {[%emt 0:00:25]} 18. Nxf6+ {[%emt 0:00:37]} gxf6 {[%emt 0:00:11]} 19. Qd3 {[%emt 0:02:14]} Rg8 {[%emt 0:02:29]} 20. e5 {[%emt 0:01:57]} dxe5 {[%emt 0:06:41]} 21. Nxe5 {[%emt 0:01:54]} Qxd3 {[%emt 0:00:24]} 22. Nxd3+ {[%emt 0:00:19]} Be7 {[%emt 0:00:37]} 23. Bxf6 {[%emt 0:00:45]} O-O-O {[%emt 0:01:17]} 24. Rxe7 {[%emt 0:01:24]} Rxd3 {[%emt 0:00:15]} 25. Rxf7 {[%emt 0:00:43]} Bh3 {[%emt 0:03:03]} 26. Rg7 {[%emt 0:03:07]} Rxg7 {[%emt 0:00:36]} 27. Bxg7 {[%emt 0:02:02]} Be6 {[%emt 0:00:34]} 28. Bxh6 {[%emt 0:00:15]} Kd7 {[%emt 0:00:45]} 29. Kf1 {[%emt 0:00:24]} Rd6 {[%emt 0:00:38]} 30. a3 {[%emt 0:01:01]} Bc4+ {[%emt 0:00:15]} 31. Ke1 {[%emt 0:00:17]} Rxh6 {[%emt 0:00:10]} 32. h3 {[%emt 0:01:01]} Bd5 {[%emt 0:00:13]} 33. f3 {[%emt 0:00:21]} Rg6 {[%emt 0:00:15]} 34. Kf2 {[%emt 0:00:12]} Ke6 {[%emt 0:00:53]} 35. g4 {[%emt 0:01:08]} Rf6 {[%emt 0:00:10]} 36. Re1+ {[%emt 0:00:14]} Kf7 {[%emt 0:00:23]} 37. Re3 {[%emt 0:52:22] Ke6 Re1+ Kf7 Re3} Rh6 {[%emt 0:01:44]} 38. Kg3 {[%emt 0:00:00]} c5 {[%emt 0:00:56]} 39. h4 {[%emt 0:00:00]} Rb6 {[%emt 0:00:39]} 40. Re2 {[%emt 0:00:00]} Rb3 {[%emt 0:00:36]} 41. Rf2 {[%emt 0:00:00]} c4 {[%emt 0:00:23]} 42. Rd2 {[%emt 0:00:00]} Rxf3+ {[%emt 0:00:17]} 43. Kh2 {[%emt 0:00:00]} Rd3 {[%emt 0:00:16]} 44. Rc2 {[%emt 0:00:00]} Rd4 {[%emt 0:00:35]} 45. Kg3 {[%emt 0:00:00]} Be6 {[%emt 0:00:28]} 46. g5 {[%emt 0:00:00]} Rd3+ {[%emt 0:00:46]} 47. Kf4 {[%emt 0:00:00]} Rd4+ {[%emt 0:00:00]} 48. Kg3 {[%emt 0:00:00]} Rg4+ {[%emt 0:00:06]} 49. Kh3 {[%emt 0:00:00]} Rxg5+ {[%emt 0:00:10]} 50. Kh2 {[%emt 0:00:00]} Rg4 {[%emt 0:00:21]} 51. Kh3 {[%emt 0:00:00]} Rd4+ {[%emt 0:00:32]} 52. Kg3 {[%emt 0:00:00]} Rd3+ {[%emt 0:00:16]} 53. Kf4 {[%emt 0:00:00]} Rh3 {[%emt 0:00:35]} 54. Kg5 {[%emt 0:00:00]} Rg3+ {[%emt 0:00:25]} 55. Kh6 {[%emt 0:00:00]} Rg6+ {[%emt 0:00:25]} 56. Kh7 {[%emt 0:00:00]} Rg4 {[%emt 0:01:39]} 57. Rf2+ {[%emt 0:00:00]} Ke7 {[%emt 0:00:19]} 58. h5 {[%emt 0:00:00]} Bf7 {[%emt 0:01:19]} 59. Re2+ {[%emt 0:00:00]} Kd6 {[%emt 0:00:17]} 60. h6 {[%emt 0:00:00]} Bg6+ {[%emt 0:01:19]} 61. Kh8 {[%emt 0:00:00]} Rh4 {[%emt 0:00:39]} 62. Kg7 {[%emt 0:00:00]} Bd3 {[%emt 0:00:17]} 63. Rg2 {[%emt 0:00:00]} Kd5 {[%emt 0:00:45]} 64. Rg1 {[%emt 0:00:00]} Kd4 {[%emt 0:00:39]} 65. Re1 {[%emt 0:00:00]} c3 {[%emt 0:00:43]} 66. bxc3+ {[%emt 0:00:00]} Kxc3 {[%emt 0:00:16]} 67. Rc1+ {[%emt 0:00:00]} Bc2 {[%emt 0:00:17]} 68. Rg1 {[%emt 0:00:00]} Kb3 {[%emt 0:00:43]} 69. Rg3+ {[%emt 0:00:00]} Kb2 {[%emt 0:00:50]} 70. Rg2 {[%emt 0:00:00]} Kc3 {[%emt 0:00:28]} 71. Rg3+ {[%emt 0:00:00]} Kd4 {[%emt 0:00:14]} 72. Rg2 {[%emt 0:00:00]} Be4 {[%emt 0:00:13]} 73. Rg1 {[%emt 0:00:00]} Bc2 {[%emt 0:00:47]} 74. Rg2 {[%emt 0:00:00]} Be4 {[%emt 0:00:13]} 75. Rg1 {[%emt 0:00:00]} c5 {[%emt 0:01:12]} 76. Rd1+ {[%emt 0:00:00]} Ke3 {[%emt 0:00:24]} 77. Rc1 {[%emt 0:00:00]} Kd4 {[%emt 0:00:36]} 78. Rd1+ {[%emt 0:00:00]} Kc4 {[%emt 0:00:15]} 79. Rc1+ {[%emt 0:00:00]} Kb5 {[%emt 0:00:23]} 80. Rc3 {[%emt 0:00:00]} c4 {[%emt 0:00:26]} 81. Rc1 {[%emt 0:00:00]} Bd3 {[%emt 0:00:32]} 82. Rd1 {[%emt 0:00:00]} Ka4 {[%emt 0:00:21]} 83. Kf6 {[%emt 0:00:00]} Rxh6+ {[%emt 0:00:28]} 84. Ke5 {[%emt 0:00:00]} Rh4 {[%emt 0:00:32]} 85. Kf6 Rh6+ {[%emt 0:00:28]} 86. Ke5 Rh4 {[%emt 0:00:50]} 87. Rc1 {[%emt 0:01:14]} Kxa3 {[%emt 0:00:43]} 88. Ra1+ {[%emt 0:00:26]} Kb2 {[%emt 0:00:59]} 89. Rxa6 {[%emt 0:00:26]} c3 {[%emt 0:00:14]} 90. Rb6+ {[%emt 0:00:17]} Ka3 {[%emt 0:00:46]} 91. Rc6 {[%emt 0:00:10]} c2 {[%emt 0:00:38]} 92. Rxc2 {[%emt 0:00:11]} Bxc2 {[%emt 0:00:05]} 93. Kd5 {[%emt 0:00:07]} Kb3 {[%emt 0:00:12]} 94. Kc5 {[%emt 0:00:38]} Rg4 {[%emt 0:00:23]} 95. Kd5 {[%emt 0:00:12]} Kc3 {[%emt 0:00:08]} 96. Ke5 {[%emt 0:00:13]} Kd3 {[%emt 0:00:22]} 97. Kf5 {[%emt 0:00:15]} Ra4 {[%emt 0:00:11]} 98. Ke5 {[%emt 0:00:13]} Rb4 {[%emt 0:00:23]} 99. Kf5 {[%emt 0:00:26]} Ke3+ {[%emt 0:00:14]} 100. Kg5 {[%emt 0:00:11]} Kd3 {[%emt 0:06:11]} 101. Kf5 Ra4 {[%emt 0:00:00]} 102. Ke5 {[%emt 0:01:23]} Rb4 {[%emt 0:00:00]} 103. Kf5 {[%emt 0:00:26]} Ke3+ {[%emt 0:00:00]} 104. Kg5 {[%emt 0:00:11]} Rb8 {[%emt 0:00:00]} 105. Kf6 {[%emt 0:00:18]} Re8 {[%emt 0:00:00]} 106. Kf7 {[%emt 0:00:11]} Ba4 {[%emt 0:00:00]} 107. Kf6 {[%emt 0:00:24]} Kd4 {[%emt 0:00:00]} 108. Kf5 {[%emt 0:00:18]} Re1 {[%emt 0:00:00]} 109. Kf6 {[%emt 0:00:14]} Kd5 {[%emt 0:00:00]} 110. Kf7 {[%emt 0:01:01]} Kd6 {[%emt 0:00:00]} 111. Kf8 {[%emt 0:00:08]} Rf1+ {[%emt 0:00:00]} 112. Kg7 {[%emt 0:00:19]} Ke6 {[%emt 0:00:00]} 113. Kg8 {[%emt 0:00:00]} Kd6 {[%emt 0:00:00]} 114. Kg7 {[%emt 0:01:00]} Ke6 {[%emt 0:00:00]} 115. Kg8 {[%emt 0:02:36]} Ke7 {[%emt 0:00:00]} 116. Kg7 {[%emt 0:00:18]} Rg1+ {[%emt 0:00:01]} 117. Kh6 {[%emt 0:00:18]} Bd1 {[%emt 0:00:17]} 118. Kh7 {[%emt 0:00:21]} Kf6 {[%emt 0:00:18]} 119. Kh8 {[%emt 0:00:21]} Kf7 {[%emt 0:00:31]} 120. Kh7 {[%emt 0:00:08]} Rh1# {[%emt 0:00:15]} 0-1

[Event "FIDE WCCC Girls-10 2024"]
[Site "Montesilvano"]
[Date "2024.11.18"]
[Round "2.36"]
[White "Gastaldo, Agathe"]
[Black "Vitsiuk, Aleksandra"]
[Result "0-1"]
[ECO "C47"]
[WhiteElo "1589"]
[BlackElo "1476"]
[PlyCount "66"]
[EventDate "2024.11.18"]
[EventType "swiss"]
[EventCountry "ITA"]
[TimeControl "5400+30"]

1. e4 {[%emt 0:00:04]} e5 {[%emt 0:00:08]} 2. Nf3 {[%emt 0:00:12]} Nc6 {[%emt 0:00:25]} 3. d4 {[%emt 0:00:49]} exd4 {[%emt 0:01:06]} 4. Nxd4 {[%emt 0:00:48]} Nf6 {[%emt 0:01:00]} 5. Nc3 {[%emt 0:01:22]} Bb4 {[%emt 0:01:15]} 6. Nxc6 {[%emt 0:01:05]} bxc6 {[%emt 0:00:49]} 7. Bd3 {[%emt 0:01:02]} d5 {[%emt 0:01:46]} 8. exd5 {[%emt 0:01:44]} cxd5 {[%emt 0:00:16]} 9. O-O {[%emt 0:01:39]} O-O {[%emt 0:02:20]} 10. Bg5 {[%emt 0:01:42]} c6 {[%emt 0:02:03]} 11. h3 {[%emt 0:04:30]} Re8 {[%emt 0:04:00]} 12. Qf3 {[%emt 0:03:38]} Be7 {[%emt 0:04:10]} 13. Rad1 {[%emt 0:02:58]} Bd7 {[%emt 0:04:24]} 14. Rfe1 {[%emt 0:02:04]} Rb8 15. b3 {[%emt 0:02:24]} Qa5 {[%emt 0:05:52]} 16. Re2 {[%emt 0:02:46]} Kh8 {[%emt 0:04:38]} 17. Rde1 {[%emt 0:05:30]} Be6 18. Bf5 {[%emt 0:13:58]} Bxf5 {[%emt 0:08:53]} 19. Qxf5 {[%emt 0:00:35]} Qxc3 {[%emt 0:01:37]} 20. Rxe7 {[%emt 0:00:34]} Ne4 {[%emt 0:02:55]} 21. Rxe8+ {[%emt 0:02:49]} Rxe8 {[%emt 0:00:34]} 22. Rc1 {[%emt 0:02:25]} f6 {[%emt 0:01:42]} 23. Be3 {[%emt 0:01:21]} Ng3 {[%emt 0:04:52]} 24. Qg4 {[%emt 0:05:17]} Ne4 {[%emt 0:04:41]} 25. Bxa7 {[%emt 0:04:25]} Qb2 {[%emt 0:05:02]} 26. Qd1 {[%emt 0:03:18]} Qc3 {[%emt 0:39:02]} 27. Qg4 {[%emt 0:00:00]} Qb2 {[%emt 0:00:00]} 28. Qd1 Nc3 {[%emt 0:00:00]} 29. Bd4 {[%emt 0:01:57]} Qxc1 {[%emt 0:00:00]} 30. Qxc1 {[%emt 0:00:24]} Ne2+ {[%emt 0:00:00]} 31. Kf1 {[%emt 0:00:22]} Nxc1 {[%emt 0:00:00]} 32. Kg1 {[%emt 0:00:38]} Ne2+ {[%emt 0:00:00]} 33. Kf1 Nc1 {[%emt 0:00:00]} 0-1

[Event "FIDE WCCC Girls-10 2024"]
[Site "Montesilvano"]
[Date "2024.11.18"]
[Round "2.37"]
[White "Giss, Annika"]
[Black "Foong, Livia"]
[Result "1/2-1/2"]
[ECO "C08"]
[WhiteElo "1586"]
[BlackElo "1461"]
[PlyCount "85"]
[EventDate "2024.11.18"]
[EventType "swiss"]
[EventCountry "ITA"]
[TimeControl "5400+30"]

1. e4 {[%emt 0:00:03]} e6 {[%emt 0:00:06]} 2. d4 {[%emt 0:00:06]} d5 {[%emt 0:00:02]} 3. Nd2 {[%emt 0:00:14]} c5 {[%emt 0:00:13]} 4. exd5 {[%emt 0:00:39]} exd5 {[%emt 0:00:14]} 5. Ndf3 {[%emt 0:01:33]} Nf6 {[%emt 0:00:16]} 6. Bd3 {[%emt 0:00:45]} Nc6 {[%emt 0:00:18]} 7. dxc5 {[%emt 0:01:01]} Bxc5 {[%emt 0:00:17]} 8. Ne2 {[%emt 0:00:53]} O-O {[%emt 0:00:22]} 9. O-O {[%emt 0:00:46]} Be6 {[%emt 0:00:11]} 10. c3 {[%emt 0:05:16]} Qb6 {[%emt 0:00:31]} 11. Qc2 {[%emt 0:01:16]} h6 {[%emt 0:00:33]} 12. Rb1 {[%emt 0:05:00]} Bg4 {[%emt 0:00:15]} 13. Nd2 {[%emt 0:03:08]} Ne5 {[%emt 0:01:18]} 14. h3 {[%emt 0:02:28]} Nxd3 {[%emt 0:01:10]} 15. Qxd3 {[%emt 0:01:30]} Bxe2 {[%emt 0:00:50]} 16. Qxe2 {[%emt 0:00:37]} Rfe8 {[%emt 0:00:26]} 17. Qd1 {[%emt 0:02:53]} Re7 {[%emt 0:00:43]} 18. b4 {[%emt 0:03:50]} Bd6 {[%emt 0:00:23]} 19. a3 {[%emt 0:02:34]} Rae8 {[%emt 0:00:23]} 20. c4 {[%emt 0:00:54]} Bb8 {[%emt 0:00:49]} 21. Bb2 {[%emt 0:03:49]} dxc4 {[%emt 0:00:28]} 22. Nxc4 {[%emt 0:00:50]} Qc7 23. Ne5 {[%emt 0:02:52]} Nd7 {[%emt 0:02:54]} 24. f4 {[%emt 0:02:48]} Nxe5 {[%emt 0:00:44]} 25. Bxe5 {[%emt 0:04:09]} Qb6+ {[%emt 0:00:33]} 26. Bd4 {[%emt 0:01:29]} Qg6 {[%emt 0:00:51]} 27. Rb2 {[%emt 0:08:31]} Rd7 {[%emt 0:00:35]} 28. Rd2 {[%emt 0:00:57]} Red8 {[%emt 0:00:22]} 29. Rff2 {[%emt 0:05:31]} Qe4 {[%emt 0:01:12]} 30. Qe2 {[%emt 0:05:13]} Qxe2 {[%emt 0:00:29]} 31. Rfxe2 {[%emt 0:00:09]} Rxd4 {[%emt 0:00:16]} 32. Rxd4 {[%emt 0:00:09]} Rxd4 {[%emt 1:28:46]} 33. Re8+ {[%emt 0:00:10]} Kh7 {[%emt 0:00:00]} 34. Rxb8 {[%emt 0:00:08]} Rd7 {[%emt 0:00:00]} 35. Kf2 {[%emt 0:02:05]} Kg6 {[%emt 0:00:00]} 36. g4 {[%emt 0:02:06]} f5 {[%emt 0:00:00]} 37. Re8 {[%emt 0:03:31]} fxg4 {[%emt 0:00:00]} 38. hxg4 {[%emt 0:00:14]} Kf7 {[%emt 0:00:00]} 39. Re2 {[%emt 0:02:03]} g5 {[%emt 0:00:00]} 40. fxg5 {[%emt 0:03:25]} hxg5 {[%emt 0:00:00]} 41. Kf3 {[%emt 0:02:17]} Kf6 {[%emt 0:00:00]} 42. Rf2 {[%emt 0:01:37]} Kg6 {[%emt 0:00:00]} 43. Kg3 {[%emt 0:01:50]} 1/2-1/2

[Event "FIDE WCCC Girls-10 2024"]
[Site "Montesilvano"]
[Date "2024.11.18"]
[Round "2.38"]
[White "Khelfallah, Ikhlas"]
[Black "Yi, Ruiyu"]
[Result "0-1"]
[ECO "B30"]
[WhiteElo "1449"]
[BlackElo "1571"]
[PlyCount "80"]
[EventDate "2024.11.18"]
[EventType "swiss"]
[EventCountry "ITA"]
[TimeControl "5400+30"]

1. e4 {[%emt 0:00:06]} c5 {[%emt 0:00:07]} 2. Nf3 {[%emt 0:00:27]} d6 {[%emt 0:00:11]} 3. d3 {[%emt 0:00:17]} Nc6 {[%emt 0:00:13]} 4. g3 {[%emt 0:00:50]} Nf6 {[%emt 0:00:16]} 5. Bg2 {[%emt 0:00:59]} e6 {[%emt 0:00:32]} 6. O-O {[%emt 0:00:46]} Be7 {[%emt 0:00:10]} 7. Re1 {[%emt 0:00:44]} O-O {[%emt 0:00:32]} 8. c3 {[%emt 0:01:09]} d5 {[%emt 0:02:53]} 9. e5 {[%emt 0:01:09]} Ne8 {[%emt 0:00:37]} 10. Nbd2 {[%emt 0:05:38]} b5 {[%emt 0:01:16]} 11. a3 {[%emt 0:02:05]} a5 {[%emt 0:00:33]} 12. d4 {[%emt 0:03:16]} Qb6 {[%emt 0:01:23]} 13. Nf1 {[%emt 0:05:04]} cxd4 {[%emt 0:01:46]} 14. cxd4 {[%emt 0:01:08]} a4 {[%emt 0:01:29]} 15. Be3 {[%emt 0:09:56]} Ba6 {[%emt 0:00:58]} 16. N1d2 {[%emt 0:02:26]} Nc7 {[%emt 0:03:25]} 17. Rc1 {[%emt 0:02:40]} Na5 {[%emt 0:06:17]} 18. Qc2 {[%emt 0:06:43]} Rfc8 {[%emt 0:04:54]} 19. Qb1 {[%emt 0:06:17]} Nc4 {[%emt 0:01:39]} 20. Nxc4 {[%emt 0:03:25]} bxc4 {[%emt 0:00:13]} 21. Ng5 {[%emt 0:02:30]} Bxg5 {[%emt 0:01:53]} 22. Bxg5 {[%emt 0:00:08]} Qxd4 {[%emt 0:03:03]} 23. Qc2 {[%emt 0:17:33]} Rab8 {[%emt 0:04:20]} 24. Rb1 {[%emt 0:07:01]} Bb5 {[%emt 0:02:23]} 25. Qe2 {[%emt 0:01:41]} c3 {[%emt 0:05:25]} 26. bxc3 {[%emt 0:00:39]} Qxc3 27. Qg4 {[%emt 0:06:37]} Qxa3 {[%emt 0:03:40]} 28. Bf6 {[%emt 0:01:30]} Qf8 {[%emt 0:12:51]} 29. Rb2 {[%emt 0:02:57]} a3 {[%emt 0:00:30]} 30. Ra2 {[%emt 0:00:15]} Kh8 {[%emt 0:01:07]} 31. Bg5 {[%emt 0:00:45]} Bc4 {[%emt 0:00:52]} 32. Raa1 {[%emt 0:00:14]} a2 {[%emt 0:01:21]} 33. Bf1 {[%emt 0:00:27]} Bxf1 {[%emt 0:01:40]} 34. Rxf1 {[%emt 0:00:08]} Rb2 {[%emt 0:00:32]} 35. Qd4 {[%emt 0:00:18]} Rcb8 {[%emt 0:00:59]} 36. Qa7 {[%emt 0:01:39]} Nb5 {[%emt 0:02:34]} 37. Qa4 {[%emt 0:01:34]} Nc3 {[%emt 0:00:42]} 38. Qg4 {[%emt 0:01:41]} Rb1 {[%emt 0:00:35]} 39. Rc1 {[%emt 0:02:42]} Rxa1 {[%emt 0:00:12]} 40. Rxa1 {[%emt 0:00:08]} Rb1+ {[%emt 0:00:06]} 0-1

[Event "FIDE WCCC Girls-10 2024"]
[Site "Montesilvano"]
[Date "2024.11.18"]
[Round "2.39"]
[White "Kravchuk, Daria"]
[Black "Mamarasulova, Yasmina"]
[Result "1-0"]
[ECO "B35"]
[WhiteElo "1569"]
[BlackElo "1444"]
[PlyCount "77"]
[EventDate "2024.11.18"]
[EventType "swiss"]
[EventCountry "ITA"]
[TimeControl "5400+30"]

1. e4 {[%emt 0:00:03]} c5 {[%emt 0:00:09]} 2. Nf3 {[%emt 0:00:08]} Nc6 {[%emt 0:00:25]} 3. d4 {[%emt 0:00:11]} cxd4 {[%emt 0:00:05]} 4. Nxd4 {[%emt 0:00:06]} g6 {[%emt 0:00:04]} 5. Nc3 {[%emt 0:00:41]} Bg7 {[%emt 0:00:13]} 6. Be3 {[%emt 0:00:16]} Nf6 {[%emt 0:00:24]} 7. f3 {[%emt 0:00:34]} O-O {[%emt 0:04:40]} 8. Bc4 {[%emt 0:01:07]} Qb6 {[%emt 0:07:11]} 9. Qd2 {[%emt 0:52:22]} Nxe4 {[%emt 0:04:27]} 10. fxe4 {[%emt 0:02:52]} Nxd4 {[%emt 0:03:19]} 11. Nd1 {[%emt 0:03:32]} Qf6 {[%emt 0:25:13]} 12. c3 {[%emt 0:05:43]} Qh4+ {[%emt 0:05:53]} 13. Nf2 {[%emt 0:02:15]} Nc6 {[%emt 0:09:37]} 14. Bg5 {[%emt 0:01:15]} Bh6 {[%emt 0:10:51]} 15. Bxh6 {[%emt 0:00:41]} Qf6 {[%emt 0:02:23]} 16. Bxf8 {[%emt 0:00:28]} Kxf8 {[%emt 0:01:14]} 17. O-O {[%emt 0:00:25]} Ne5 {[%emt 0:01:42]} 18. Bb3 {[%emt 0:00:19]} Qh4 {[%emt 0:04:27]} 19. Nd3 {[%emt 0:02:40]} Qxe4 {[%emt 0:07:43]} 20. Nxe5 {[%emt 0:00:28]} Qxe5 {[%emt 0:00:20]} 21. Rxf7+ {[%emt 0:00:13]} Ke8 {[%emt 0:00:10]} 22. Raf1 {[%emt 0:00:52]} Qc5+ {[%emt 0:00:41]} 23. Qd4 {[%emt 0:00:08]} Qxd4+ {[%emt 0:00:12]} 24. cxd4 {[%emt 0:00:05]} d6 {[%emt 0:00:11]} 25. Be6 {[%emt 0:00:37]} Bxe6 {[%emt 0:01:06]} 26. Rf8+ {[%emt 0:25:29]} Kd7 {[%emt 0:00:07]} 27. Rxa8 {[%emt 0:00:00]} a6 {[%emt 0:11:13]} 28. Rc1 {[%emt 0:00:00]} Bxa2 {[%emt 0:00:00]} 29. Rb8 {[%emt 0:00:00]} Bd5 {[%emt 0:00:00]} 30. Kf2 {[%emt 0:00:00]} e5 {[%emt 0:00:00]} 31. dxe5 {[%emt 0:00:00]} dxe5 {[%emt 0:00:00]} 32. Rd1 {[%emt 0:00:00]} Ke6 {[%emt 0:00:00]} 33. Rxd5 {[%emt 0:00:00]} Kxd5 {[%emt 0:00:00]} 34. Rxb7 {[%emt 0:00:00]} Kd4 {[%emt 0:03:30]} 35. Ke2 {[%emt 0:04:30]} e4 {[%emt 0:00:00]} 36. Rxh7 {[%emt 0:00:00]} Kc4 {[%emt 0:00:00]} 37. Rh6 {[%emt 0:00:00]} Kb3 {[%emt 0:00:00]} 38. Rxg6 {[%emt 0:00:00]} Kxb2 {[%emt 0:02:00]} 39. Rxa6 {[%emt 0:00:00]} 1-0